[Event "*** Titled Tuesday 3|2 Blitz"]
[Site "Chess.com"]
[Date "2015.10.06"]
[Round "1"]
[White "PowerThinking2650"]
[Black "A-Fier"]
[Result "0-1"]
[WhiteElo "2064"]
[BlackElo "2434"]
[TimeControl "180+2"]
[EndTime "11:07:59 PDT"]
[Termination "A-Fier won by resignation"]

1. e4 {[%clk 0:02:59.7]} 1... c5 {[%clk 0:02:41.1]} 2. Nf3 {[%clk 0:03:00.7]}
2... g6 {[%clk 0:02:38.8]} 3. d4 {[%clk 0:03:01.4]} 3... cxd4 {[%clk 0:02:40.7]}
4. Nxd4 {[%clk 0:03:03]} 4... Bg7 {[%clk 0:02:42.2]} 5. c4 {[%clk 0:03:04.3]}
5... Nc6 {[%clk 0:02:44.1]} 6. Be3 {[%clk 0:03:05]} 6... Nf6 {[%clk 0:02:46]} 7.
Nc3 {[%clk 0:03:06]} 7... O-O {[%clk 0:02:46.7]} 8. Be2 {[%clk 0:03:06.5]} 8...
Nxd4 {[%clk 0:02:47.8]} 9. Bxd4 {[%clk 0:03:06.5]} 9... d6 {[%clk 0:02:48.9]}
10. O-O {[%clk 0:03:04.3]} 10... Bd7 {[%clk 0:02:50.8]} 11. Qd2 {[%clk
0:03:01.1]} 11... Bc6 {[%clk 0:02:52.7]} 12. Bd3 {[%clk 0:03:02]} 12... a5
{[%clk 0:02:54.6]} 13. Rae1 {[%clk 0:03:01.2]} 13... Nd7 {[%clk 0:02:56.5]} 14.
Bxg7 {[%clk 0:03:01.2]} 14... Kxg7 {[%clk 0:02:58]} 15. Re3 {[%clk 0:03:02.4]}
15... Nc5 {[%clk 0:02:59.2]} 16. Bc2 {[%clk 0:03:03.2]} 16... e5 {[%clk
0:02:57.8]} 17. Rh3 {[%clk 0:03:01.9]} 17... h5 {[%clk 0:02:58.6]} 18. f4 {[%clk
0:03:01.1]} 18... exf4 {[%clk 0:02:57.7]} 19. Qxf4 {[%clk 0:02:58.7]} 19... Ne6
{[%clk 0:02:58.5]} 20. Qf2 {[%clk 0:02:38.4]} 20... Qg5 {[%clk 0:02:54.5]} 21.
Nd5 {[%clk 0:02:36.2]} 21... Bxd5 {[%clk 0:02:51.2]} 22. exd5 {[%clk 0:02:36.6]}
22... Nc5 {[%clk 0:02:50.2]} 23. Rg3 {[%clk 0:02:33.5]} 23... Qe5 {[%clk
0:02:50.9]} 24. b3 {[%clk 0:02:16.6]} 24... Rae8 {[%clk 0:02:48.3]} 25. Qf3
{[%clk 0:02:15.3]} 25... h4 {[%clk 0:02:44.3]} 26. Rg4 {[%clk 0:02:13]} 26...
Qe3+ {[%clk 0:02:42.5]} 27. Qxe3 {[%clk 0:02:13.9]} 27... Rxe3 {[%clk
0:02:39.9]} 28. Rxh4 {[%clk 0:02:15]} 28... Re2 {[%clk 0:02:39.8]} 29. Rf2
{[%clk 0:02:15.3]} 29... Rfe8 {[%clk 0:02:41.7]} 30. Rhf4 {[%clk 0:02:16.3]}
30... f5 {[%clk 0:02:42.5]} 31. g4 {[%clk 0:02:13.7]} 31... fxg4 {[%clk
0:02:39.6]} 32. Rxg4 {[%clk 0:02:12.2]} 32... Rxf2 {[%clk 0:02:37.7]} 33. Kxf2
{[%clk 0:02:12.9]} 33... Rf8+ {[%clk 0:02:39.1]} 34. Ke3 {[%clk 0:02:12.7]}
34... Rf6 {[%clk 0:02:39.8]} 35. a3 {[%clk 0:02:13.2]} 35... Nd7 {[%clk
0:02:38.6]} 36. Re4 {[%clk 0:02:09.9]} 36... Ne5 {[%clk 0:02:40]} 37. Rxe5
{[%clk 0:02:05.5]} 37... dxe5 {[%clk 0:02:39.9]} 38. Ke4 {[%clk 0:02:06.4]}
38... Rf2 {[%clk 0:02:40.8]} 39. Bd3 {[%clk 0:02:04.3]} 39... Kf6 {[%clk
0:02:42.1]} 40. c5 {[%clk 0:02:05.3]} 40... Rxh2 {[%clk 0:02:44]} 41. b4 {[%clk
0:02:03]} 41... a4 {[%clk 0:02:42.8]} 42. b5 {[%clk 0:02:01.9]} 42... Rh4+
{[%clk 0:02:33]} 43. Ke3 {[%clk 0:02:01.3]} 43... e4 {[%clk 0:02:33.9]} 44. Bxe4
{[%clk 0:01:58.5]} 44... Ke5 {[%clk 0:02:34.9]} 45. Bf3 {[%clk 0:01:58.7]} 45...
Rc4 {[%clk 0:02:34.6]} 46. d6 {[%clk 0:01:26.7]} 46... Rc3+ {[%clk 0:02:34.5]}
47. Ke2 {[%clk 0:01:08.6]} 47... Kf6 {[%clk 0:02:36]} 48. c6 {[%clk 0:00:31.1]}
48... bxc6 {[%clk 0:02:36.5]} 49. bxc6 {[%clk 0:00:26.8]} 49... Ke6 {[%clk
0:02:35.8]} 50. d7 {[%clk 0:00:22.7]} 50... Ke7 {[%clk 0:02:36.8]} 51. Kd2
{[%clk 0:00:21.5]} 51... Rxf3 {[%clk 0:02:37.7]} 0-1

[Event "*** Titled Tuesday 3|2 Blitz"]
[Site "Chess.com"]
[Date "2015.10.06"]
[Round "1"]
[White "chessloveyou"]
[Black "BakaPG"]
[Result "1-0"]
[WhiteElo "2172"]
[BlackElo "2514"]
[TimeControl "180+2"]
[EndTime "11:08:14 PDT"]
[Termination "chessloveyou won by resignation"]

1. d4 {[%clk 0:02:59.3]} 1... d5 {[%clk 0:02:58.9]} 2. Nf3 {[%clk 0:02:59]} 2...
Nf6 {[%clk 0:02:57.9]} 3. g3 {[%clk 0:02:59.2]} 3... Bf5 {[%clk 0:02:55.7]} 4.
c4 {[%clk 0:02:57.9]} 4... c6 {[%clk 0:02:54.9]} 5. Nc3 {[%clk 0:02:57.7]} 5...
e6 {[%clk 0:02:54.4]} 6. Bg2 {[%clk 0:02:57]} 6... h6 {[%clk 0:02:51.8]} 7. O-O
{[%clk 0:02:57.2]} 7... Nbd7 {[%clk 0:02:50.9]} 8. cxd5 {[%clk 0:02:54.8]} 8...
exd5 {[%clk 0:02:49.8]} 9. Re1 {[%clk 0:02:46.4]} 9... Be7 {[%clk 0:02:48.6]}
10. Nd2 {[%clk 0:02:38.6]} 10... Bg4 {[%clk 0:02:47.1]} 11. Qb3 {[%clk
0:02:38.5]} 11... Qb6 {[%clk 0:02:45]} 12. e4 {[%clk 0:02:32.1]} 12... Be6
{[%clk 0:02:43.7]} 13. exd5 {[%clk 0:02:22.7]} 13... cxd5 {[%clk 0:02:42.7]} 14.
Na4 {[%clk 0:01:35.6]} 14... Qxb3 {[%clk 0:02:40.1]} 15. Nxb3 {[%clk 0:01:34.1]}
15... O-O {[%clk 0:02:38.9]} 16. Nac5 {[%clk 0:01:31.8]} 16... Nxc5 {[%clk
0:02:37.3]} 17. Nxc5 {[%clk 0:01:32.2]} 17... Bxc5 {[%clk 0:02:35.4]} 18. dxc5
{[%clk 0:01:33]} 18... Rac8 {[%clk 0:02:34]} 19. Be3 {[%clk 0:01:28.4]} 19...
Ne4 {[%clk 0:02:33.1]} 20. Bxe4 {[%clk 0:01:27.9]} 20... dxe4 {[%clk 0:02:32.8]}
21. b4 {[%clk 0:01:23.7]} 21... Bg4 {[%clk 0:02:32.8]} 22. a4 {[%clk 0:01:18.3]}
22... Rfd8 {[%clk 0:02:26.9]} 23. b5 {[%clk 0:01:16.6]} 23... Bf3 {[%clk
0:02:25.2]} 24. a5 {[%clk 0:01:12.9]} 24... a6 {[%clk 0:02:25.4]} 25. bxa6
{[%clk 0:01:09.9]} 25... bxa6 {[%clk 0:02:24.7]} 26. Rab1 {[%clk 0:01:08.4]}
26... Rd3 {[%clk 0:02:18.3]} 27. h3 {[%clk 0:01:01.9]} 27... Ra3 {[%clk
0:02:17]} 28. Ra1 {[%clk 0:00:56.4]} 28... Rd3 {[%clk 0:02:16.4]} 29. Reb1
{[%clk 0:00:50]} 29... f5 {[%clk 0:02:14.9]} 30. Rb6 {[%clk 0:00:41.2]} 30...
Rcd8 {[%clk 0:02:14.4]} 31. g4 {[%clk 0:00:40.9]} 31... fxg4 {[%clk 0:02:10.3]}
32. hxg4 {[%clk 0:00:41.5]} 32... Bxg4 {[%clk 0:02:11]} 33. Rxa6 {[%clk
0:00:41.7]} 33... Bf3 {[%clk 0:02:10.9]} 34. Kh2 {[%clk 0:00:35.4]} 34... R8d5
{[%clk 0:02:05.6]} 35. Rd6 {[%clk 0:00:33.4]} 35... Rxd6 {[%clk 0:01:58.6]} 36.
cxd6 {[%clk 0:00:34.6]} 36... Rxd6 {[%clk 0:01:58.7]} 37. a6 {[%clk 0:00:36.5]}
37... Rd8 {[%clk 0:01:56.4]} 38. a7 {[%clk 0:00:37.8]} 38... Ra8 {[%clk
0:01:55.1]} 39. Rb1 {[%clk 0:00:35.5]} 39... Kf7 {[%clk 0:01:55.1]} 40. Rb8
{[%clk 0:00:35.8]} 40... Rxa7 {[%clk 0:01:55.7]} 41. Bxa7 {[%clk 0:00:35.7]}
41... g5 {[%clk 0:01:56.1]} 42. Rb6 {[%clk 0:00:33.1]} 42... h5 {[%clk 0:01:56]}
43. Rh6 {[%clk 0:00:33]} 43... Kg7 {[%clk 0:01:52.7]} 44. Rd6 {[%clk 0:00:33.3]}
44... h4 {[%clk 0:01:51]} 45. Kh3 {[%clk 0:00:31.7]} 45... Kf7 {[%clk
0:01:50.8]} 46. Be3 {[%clk 0:00:31.8]} 46... Ke7 {[%clk 0:01:47.2]} 47. Rg6
{[%clk 0:00:31.8]} 47... g4+ {[%clk 0:01:45.5]} 48. Kxh4 {[%clk 0:00:32.2]}
48... Kf7 {[%clk 0:01:46.1]} 49. Rb6 {[%clk 0:00:32.5]} 49... Kg7 {[%clk
0:01:46.7]} 50. Kg3 {[%clk 0:00:32.2]} 50... Kf7 {[%clk 0:01:46.8]} 51. Kf4
{[%clk 0:00:32.8]} 51... Ke7 {[%clk 0:01:47.2]} 52. Rg6 {[%clk 0:00:32.1]} 52...
Kf7 {[%clk 0:01:47.6]} 53. Rxg4 {[%clk 0:00:33.1]} 53... Ke6 {[%clk 0:01:46.7]}
54. Rg5 {[%clk 0:00:33.6]} 54... Kf6 {[%clk 0:01:46]} 55. Re5 {[%clk 0:00:33.9]}
1-0

[Event "*** Titled Tuesday 3|2 Blitz"]
[Site "Chess.com"]
[Date "2015.10.06"]
[Round "1"]
[White "jcibarra"]
[Black "Viaje"]
[Result "1-0"]
[WhiteElo "2534"]
[BlackElo "2160"]
[TimeControl "180+2"]
[EndTime "11:08:41 PDT"]
[Termination "jcibarra won by resignation"]

1. e4 {[%clk 0:03:01.7]} 1... c5 {[%clk 0:02:58.7]} 2. Nf3 {[%clk 0:03:02.3]}
2... d6 {[%clk 0:02:59.8]} 3. d4 {[%clk 0:03:03.4]} 3... cxd4 {[%clk 0:03:01.7]}
4. Nxd4 {[%clk 0:03:05.3]} 4... Nf6 {[%clk 0:03:02.2]} 5. Nc3 {[%clk 0:03:06.7]}
5... a6 {[%clk 0:03:03.4]} 6. Be3 {[%clk 0:03:07.7]} 6... e5 {[%clk 0:03:04.8]}
7. Nf3 {[%clk 0:03:08.4]} 7... Be7 {[%clk 0:03:05.4]} 8. Bc4 {[%clk 0:03:08.9]}
8... O-O {[%clk 0:03:06.7]} 9. O-O {[%clk 0:03:10.1]} 9... Qc7 {[%clk
0:03:07.7]} 10. Bb3 {[%clk 0:03:09.1]} 10... Be6 {[%clk 0:03:08.6]} 11. Qe2
{[%clk 0:03:08.6]} 11... Nc6 {[%clk 0:03:08.9]} 12. Bg5 {[%clk 0:03:08.1]} 12...
Na5 {[%clk 0:02:57.7]} 13. Rfd1 {[%clk 0:03:04.4]} 13... Rac8 {[%clk 0:02:53.5]}
14. Bxf6 {[%clk 0:03:02.4]} 14... Bxf6 {[%clk 0:02:53.3]} 15. Rac1 {[%clk
0:03:03.7]} 15... Nxb3 {[%clk 0:02:51.8]} 16. axb3 {[%clk 0:03:03.9]} 16... Rfd8
{[%clk 0:02:49.9]} 17. Nd5 {[%clk 0:03:04.3]} 17... Bxd5 {[%clk 0:02:48.8]} 18.
Rxd5 {[%clk 0:03:06.2]} 18... Be7 {[%clk 0:02:48.5]} 19. c3 {[%clk 0:03:05.6]}
19... Qb6 {[%clk 0:02:48]} 20. b4 {[%clk 0:03:04.5]} 20... Rf8 {[%clk
0:02:47.9]} 21. Qd3 {[%clk 0:02:48.8]} 21... g6 {[%clk 0:02:38.9]} 22. Nd2
{[%clk 0:02:39.3]} 22... Qc6 {[%clk 0:02:31]} 23. Rd1 {[%clk 0:02:28.4]} 23...
f5 {[%clk 0:02:28.6]} 24. exf5 {[%clk 0:02:29.6]} 24... gxf5 {[%clk 0:02:29]}
25. f4 {[%clk 0:02:23.2]} 25... e4 {[%clk 0:02:23.7]} 26. Qg3+ {[%clk
0:02:20.8]} 26... Kh8 {[%clk 0:02:22.9]} 27. Nf1 {[%clk 0:02:20.9]} 27... Rf6
{[%clk 0:02:17.5]} 28. Ne3 {[%clk 0:02:19.5]} 28... Rcf8 {[%clk 0:02:02]} 29.
Qh3 {[%clk 0:02:19.4]} 29... Qd7 {[%clk 0:01:29.4]} 30. R5d4 {[%clk 0:02:09.8]}
30... Qe6 {[%clk 0:01:26.9]} 31. Qh5 {[%clk 0:01:55.7]} 31... Rh6 {[%clk
0:01:25.4]} 32. Qe2 {[%clk 0:01:56.3]} 32... Bd8 {[%clk 0:01:20.9]} 33. Nc4
{[%clk 0:01:42.5]} 33... Qe7 {[%clk 0:00:54.8]} 34. Rxd6 {[%clk 0:01:38]} 34...
Rxd6 {[%clk 0:00:52.5]} 35. Nxd6 {[%clk 0:01:35.5]} 35... b5 {[%clk 0:00:51.4]}
36. Qe3 {[%clk 0:01:31.1]} 36... Bc7 {[%clk 0:00:48.2]} 37. Qd4+ {[%clk
0:01:27.5]} 37... Kg8 {[%clk 0:00:45.1]} 38. Qd5+ {[%clk 0:01:28.7]} 38... Kh8
{[%clk 0:00:45.3]} 39. Nxf5 {[%clk 0:01:27.4]} 39... Qf6 {[%clk 0:00:41.6]} 40.
g4 {[%clk 0:01:02.3]} 40... Bxf4 {[%clk 0:00:41.7]} 41. Qxe4 {[%clk 0:01:02.1]}
41... Qg5 {[%clk 0:00:30.9]} 42. h3 {[%clk 0:01:00.5]} 42... h5 {[%clk
0:00:30.4]} 43. Rd7 {[%clk 0:00:57.1]} 43... hxg4 {[%clk 0:00:29.5]} 44. Qd4+
{[%clk 0:00:57]} 44... Rf6 {[%clk 0:00:28.2]} 45. Rd8+ {[%clk 0:00:49.8]} 45...
Kh7 {[%clk 0:00:29.4]} 46. Qd7+ {[%clk 0:00:49.1]} 46... Kg6 {[%clk 0:00:29.3]}
47. Rg8+ {[%clk 0:00:49.9]} 47... Kh5 {[%clk 0:00:26]} 48. Rxg5+ {[%clk
0:00:44.8]} 48... Kxg5 {[%clk 0:00:26.4]} 49. hxg4 {[%clk 0:00:45.3]} 49... Kxg4
{[%clk 0:00:27]} 1-0

[Event "*** Titled Tuesday 3|2 Blitz"]
[Site "Chess.com"]
[Date "2015.10.06"]
[Round "1"]
[White "LADIESGET2KNOWME"]
[Black "GeorgMeier"]
[Result "0-1"]
[WhiteElo "2254"]
[BlackElo "2612"]
[TimeControl "180+2"]
[EndTime "11:09:24 PDT"]
[Termination "GeorgMeier won on time"]

1. d4 {[%clk 0:03:01.4]} 1... e6 {[%clk 0:03:01.9]} 2. Nf3 {[%clk 0:03:02.3]}
2... Nf6 {[%clk 0:03:03.8]} 3. g3 {[%clk 0:03:03.5]} 3... d5 {[%clk 0:03:04.6]}
4. Bg2 {[%clk 0:03:04.8]} 4... b5 {[%clk 0:03:06.2]} 5. O-O {[%clk 0:03:06.7]}
5... Nbd7 {[%clk 0:03:07.7]} 6. a4 {[%clk 0:02:57.1]} 6... b4 {[%clk 0:03:08.5]}
7. c4 {[%clk 0:02:56.6]} 7... bxc3 {[%clk 0:03:10.4]} 8. bxc3 {[%clk 0:02:57]}
8... Ba6 {[%clk 0:03:11.2]} 9. Re1 {[%clk 0:02:57.6]} 9... Bd6 {[%clk
0:03:12.4]} 10. Nfd2 {[%clk 0:02:55.5]} 10... Bb7 {[%clk 0:03:03.4]} 11. c4
{[%clk 0:02:50.7]} 11... c5 {[%clk 0:03:01.4]} 12. cxd5 {[%clk 0:02:50]} 12...
exd5 {[%clk 0:03:00.1]} 13. dxc5 {[%clk 0:02:43.6]} 13... Nxc5 {[%clk 0:03:01]}
14. Nc3 {[%clk 0:02:37.8]} 14... O-O {[%clk 0:03:01.1]} 15. Ba3 {[%clk
0:02:37.8]} 15... Rc8 {[%clk 0:03:00.6]} 16. Nb5 {[%clk 0:02:37.2]} 16... Bb8
{[%clk 0:02:57.9]} 17. Nb3 {[%clk 0:02:32.5]} 17... Nxb3 {[%clk 0:02:53.8]} 18.
Qxb3 {[%clk 0:02:31.8]} 18... Re8 {[%clk 0:02:49.8]} 19. Rad1 {[%clk 0:02:26.5]}
19... Qb6 {[%clk 0:02:46.8]} 20. e3 {[%clk 0:02:05.1]} 20... Be5 {[%clk
0:02:45.5]} 21. Qa2 {[%clk 0:01:55]} 21... Rc4 {[%clk 0:02:09.8]} 22. Rb1 {[%clk
0:00:54.4]} 22... Qa5 {[%clk 0:02:03]} 23. Bd6 {[%clk 0:00:42.8]} 23... Rxa4
{[%clk 0:01:54.2]} 24. Qb3 {[%clk 0:00:40.2]} 24... Bc6 {[%clk 0:01:31.6]} 25.
Bxe5 {[%clk 0:00:40]} 25... Rxe5 {[%clk 0:01:33.5]} 26. Nd4 {[%clk 0:00:40.2]}
26... Bd7 {[%clk 0:01:22]} 27. Rec1 {[%clk 0:00:39.1]} 27... Re8 {[%clk
0:01:21.5]} 28. Qb7 {[%clk 0:00:38.2]} 28... Ra2 {[%clk 0:01:19.1]} 29. Rc7
{[%clk 0:00:27.2]} 29... Ra1 {[%clk 0:01:01.6]} 30. Rcc1 {[%clk 0:00:16.7]}
30... Rxb1 {[%clk 0:00:58.9]} 31. Rxb1 {[%clk 0:00:18.6]} 31... h6 {[%clk
0:00:35]} 32. h3 {[%clk 0:00:19.5]} 32... Rc8 {[%clk 0:00:33.7]} 33. Kh2 {[%clk
0:00:17.8]} 33... Qc5 {[%clk 0:00:33.2]} 34. Ra1 {[%clk 0:00:17]} 34... Rc7
{[%clk 0:00:33]} 35. Qb8+ {[%clk 0:00:17.1]} 35... Kh7 {[%clk 0:00:34.6]} 36.
Bf1 {[%clk 0:00:17.2]} 36... g6 {[%clk 0:00:32.6]} 37. Bd3 {[%clk 0:00:17.5]}
37... Kg7 {[%clk 0:00:33.8]} 38. Rb1 {[%clk 0:00:14]} 38... Qc3 {[%clk
0:00:32.6]} 39. Bf1 {[%clk 0:00:12.1]} 39... Qc5 {[%clk 0:00:31.5]} 40. Rb7
{[%clk 0:00:09.7]} 40... Rxb7 {[%clk 0:00:31.8]} 41. Qxb7 {[%clk 0:00:11.6]}
41... a5 {[%clk 0:00:33.4]} 42. Bg2 {[%clk 0:00:10]} 42... a4 {[%clk 0:00:32.8]}
43. Qa6 {[%clk 0:00:11.1]} 43... a3 {[%clk 0:00:33.6]} 44. Nf3 {[%clk
0:00:11.7]} 44... Qc2 {[%clk 0:00:28]} 45. Kg1 {[%clk 0:00:11.2]} 45... Qb1+
{[%clk 0:00:27.8]} 46. Kh2 {[%clk 0:00:09]} 46... a2 {[%clk 0:00:29.2]} 0-1

[Event "*** Titled Tuesday 3|2 Blitz"]
[Site "Chess.com"]
[Date "2015.10.06"]
[Round "1"]
[White "rikyshi"]
[Black "E-Shaposhnikov"]
[Result "0-1"]
[WhiteElo "2138"]
[BlackElo "2504"]
[TimeControl "180+2"]
[EndTime "11:09:30 PDT"]
[Termination "E-Shaposhnikov won by resignation"]

1. e4 {[%clk 0:03:00.1]} 1... c5 {[%clk 0:02:58.3]} 2. Nf3 {[%clk 0:03:00]} 2...
e6 {[%clk 0:02:58.9]} 3. c3 {[%clk 0:03:00.3]} 3... Nf6 {[%clk 0:02:59]} 4. e5
{[%clk 0:02:59.9]} 4... Nd5 {[%clk 0:02:59.7]} 5. d4 {[%clk 0:02:55.5]} 5...
cxd4 {[%clk 0:03:00.1]} 6. cxd4 {[%clk 0:02:57.4]} 6... d6 {[%clk 0:03:00.4]} 7.
Nc3 {[%clk 0:02:53.3]} 7... Nxc3 {[%clk 0:02:50.1]} 8. bxc3 {[%clk 0:02:55.2]}
8... Nc6 {[%clk 0:02:50.4]} 9. exd6 {[%clk 0:02:56]} 9... Bxd6 {[%clk 0:02:51]}
10. Bd3 {[%clk 0:02:55.2]} 10... Ne7 {[%clk 0:02:34.1]} 11. O-O {[%clk
0:02:49.5]} 11... Ng6 {[%clk 0:02:34.2]} 12. Re1 {[%clk 0:02:30]} 12... O-O
{[%clk 0:02:33.7]} 13. c4 {[%clk 0:02:21.7]} 13... b6 {[%clk 0:02:31.1]} 14. Be4
{[%clk 0:02:18.2]} 14... Rb8 {[%clk 0:02:31.7]} 15. Bg5 {[%clk 0:02:09.6]} 15...
Qc7 {[%clk 0:02:27]} 16. Rc1 {[%clk 0:02:09.3]} 16... Bb7 {[%clk 0:02:26.5]} 17.
c5 {[%clk 0:01:39.3]} 17... bxc5 {[%clk 0:02:18.3]} 18. dxc5 {[%clk 0:01:41.2]}
18... Bf4 {[%clk 0:01:59.4]} 19. Bxf4 {[%clk 0:01:25.9]} 19... Nxf4 {[%clk
0:01:57.9]} 20. c6 {[%clk 0:01:07]} 20... Ba6 {[%clk 0:01:51.5]} 21. g3 {[%clk
0:00:38.7]} 21... Rfd8 {[%clk 0:01:46.8]} 22. Qc2 {[%clk 0:00:38.4]} 22... Bd3
{[%clk 0:01:38.6]} 23. Qa4 {[%clk 0:00:28.2]} 23... Ne2+ {[%clk 0:01:34.6]} 24.
Rxe2 {[%clk 0:00:28.2]} 24... Bxe2 {[%clk 0:01:36.5]} 25. Ne5 {[%clk 0:00:18.1]}
25... Bb5 {[%clk 0:01:24.7]} 26. Qc2 {[%clk 0:00:18.9]} 26... Qxe5 {[%clk
0:01:20]} 27. c7 {[%clk 0:00:20.2]} 27... f5 {[%clk 0:01:17.3]} 28. cxb8=Q
{[%clk 0:00:19.3]} 28... Rxb8 {[%clk 0:01:17.2]} 29. Bg2 {[%clk 0:00:20.2]}
29... Rd8 {[%clk 0:01:17.7]} 30. h4 {[%clk 0:00:19.1]} 30... h6 {[%clk
0:01:18.6]} 31. Qc7 {[%clk 0:00:19.2]} 31... Rd1+ {[%clk 0:01:18.2]} 32. Kh2
{[%clk 0:00:18.8]} 32... Qxc7 {[%clk 0:01:19.3]} 33. Rxc7 {[%clk 0:00:20]} 33...
a6 {[%clk 0:01:20.6]} 34. Bc6 {[%clk 0:00:15.8]} 34... Rc1 {[%clk 0:01:18.2]}
35. Rc8+ {[%clk 0:00:17.1]} 35... Kh7 {[%clk 0:01:18.4]} 36. Bd7 {[%clk
0:00:18.3]} 36... Rxc8 {[%clk 0:01:18.7]} 37. Bxc8 {[%clk 0:00:20.2]} 37... Bc4
{[%clk 0:01:20.6]} 38. a3 {[%clk 0:00:21.5]} 38... Kg6 {[%clk 0:01:21.7]} 39. f4
{[%clk 0:00:22.2]} 39... Kf6 {[%clk 0:01:22.6]} 40. Kg2 {[%clk 0:00:23.2]} 40...
e5 {[%clk 0:01:21.7]} 41. fxe5+ {[%clk 0:00:23.7]} 41... Kxe5 {[%clk 0:01:23.6]}
42. Kf3 {[%clk 0:00:25]} 42... g5 {[%clk 0:01:25.2]} 43. hxg5 {[%clk 0:00:25.9]}
43... hxg5 {[%clk 0:01:27.1]} 44. Ke3 {[%clk 0:00:27.5]} 44... a5 {[%clk
0:01:28.7]} 45. Bd7 {[%clk 0:00:26.3]} 45... f4+ {[%clk 0:01:29]} 46. gxf4+
{[%clk 0:00:27.5]} 46... gxf4+ {[%clk 0:01:30.9]} 47. Kd2 {[%clk 0:00:28]} 47...
Kd4 {[%clk 0:01:31.1]} 48. Bg4 {[%clk 0:00:25.9]} 48... Bd5 {[%clk 0:01:31.7]}
49. Kc1 {[%clk 0:00:26.9]} 49... Ke3 {[%clk 0:01:31.4]} 50. Kb2 {[%clk
0:00:27.6]} 50... Bf3 {[%clk 0:01:32.4]} 51. Bh3 {[%clk 0:00:28.7]} 51... Bh5
{[%clk 0:01:30.8]} 52. Bg2 {[%clk 0:00:27.4]} 52... Bf3 {[%clk 0:01:31.5]} 53.
Bh3 {[%clk 0:00:28.6]} 53... Be2 {[%clk 0:01:29.1]} 54. Bg2 {[%clk 0:00:28.5]}
54... Kf2 {[%clk 0:01:30.6]} 55. Be4 {[%clk 0:00:27.8]} 55... Bf3 {[%clk
0:01:31.8]} 56. Bd3 {[%clk 0:00:25.8]} 56... Ke3 {[%clk 0:01:32.4]} 57. Bf1
{[%clk 0:00:27]} 57... Bd5 {[%clk 0:01:32]} 58. Bh3 {[%clk 0:00:26.1]} 58... f3
{[%clk 0:01:33]} 59. Bf1 {[%clk 0:00:23.5]} 59... f2 {[%clk 0:01:32.4]} 60. Bb5
{[%clk 0:00:24.3]} 60... Kd2 {[%clk 0:01:31.9]} 61. Bf1 {[%clk 0:00:24.7]} 61...
Ke1 {[%clk 0:01:33.1]} 62. Ba6 {[%clk 0:00:24.3]} 62... Bf3 {[%clk 0:01:34.1]}
0-1

[Event "*** Titled Tuesday 3|2 Blitz"]
[Site "Chess.com"]
[Date "2015.10.06"]
[Round "1"]
[White "dabee"]
[Black "Po6Don"]
[Result "1-0"]
[WhiteElo "2381"]
[BlackElo "1941"]
[TimeControl "180+2"]
[EndTime "11:09:30 PDT"]
[Termination "dabee won on time"]

1. d4 {[%clk 0:02:56.3]} 1... d5 {[%clk 0:02:59.1]} 2. c4 {[%clk 0:02:56.4]}
2... e5 {[%clk 0:02:58.2]} 3. Nf3 {[%clk 0:02:55.2]} 3... exd4 {[%clk 0:02:11]}
4. cxd5 {[%clk 0:02:44.2]} 4... Nf6 {[%clk 0:01:58.5]} 5. Qxd4 {[%clk 0:02:35]}
5... Qxd5 {[%clk 0:01:57.3]} 6. Nc3 {[%clk 0:02:34.7]} 6... Qxd4 {[%clk
0:01:46.9]} 7. Nxd4 {[%clk 0:02:34.7]} 7... Bc5 {[%clk 0:01:21.5]} 8. Nb3 {[%clk
0:02:33.6]} 8... Bb4 {[%clk 0:01:15.7]} 9. Bd2 {[%clk 0:02:32.4]} 9... c6 {[%clk
0:01:12.9]} 10. a3 {[%clk 0:02:31.1]} 10... Be7 {[%clk 0:01:09.7]} 11. e4 {[%clk
0:02:27.8]} 11... Nbd7 {[%clk 0:01:01.2]} 12. f3 {[%clk 0:02:24.5]} 12... O-O
{[%clk 0:01:01.1]} 13. Be3 {[%clk 0:02:23.2]} 13... b6 {[%clk 0:00:51.8]} 14.
O-O-O {[%clk 0:02:21.5]} 14... Bb7 {[%clk 0:00:49.7]} 15. g4 {[%clk 0:02:21.1]}
15... Rfd8 {[%clk 0:00:44.9]} 16. g5 {[%clk 0:02:15]} 16... Ne8 {[%clk
0:00:45.7]} 17. f4 {[%clk 0:02:05.7]} 17... a5 {[%clk 0:00:37.7]} 18. Bh3 {[%clk
0:02:03]} 18... Nf8 {[%clk 0:00:36.5]} 19. Nd4 {[%clk 0:01:57.3]} 19... Nd6
{[%clk 0:00:31]} 20. Nf5 {[%clk 0:01:50.6]} 20... Nxf5 {[%clk 0:00:31.8]} 21.
exf5 {[%clk 0:01:51.1]} 21... c5 {[%clk 0:00:32.7]} 22. Rhe1 {[%clk 0:01:51.4]}
22... Rxd1+ {[%clk 0:00:33]} 23. Rxd1 {[%clk 0:01:50.5]} 23... Rd8 {[%clk
0:00:34.1]} 24. Re1 {[%clk 0:01:47.8]} 24... Bd6 {[%clk 0:00:27.7]} 25. Bf1
{[%clk 0:01:40.2]} 25... Bb8 {[%clk 0:00:15.6]} 26. Bb5 {[%clk 0:01:36.6]} 26...
Rc8 {[%clk 0:00:14.5]} 27. Rd1 {[%clk 0:01:35.3]} 27... h6 {[%clk 0:00:13.9]}
28. h4 {[%clk 0:01:35]} 28... hxg5 {[%clk 0:00:08]} 29. hxg5 {[%clk 0:01:32.6]}
29... Bc7 {[%clk 0:00:09.9]} 30. Bc4 {[%clk 0:01:31]} 30... Rd8 {[%clk
0:00:09.9]} 31. g6 {[%clk 0:01:30.7]} 31... Rxd1+ {[%clk 0:00:10.4]} 32. Kxd1
{[%clk 0:01:30.2]} 32... Nd7 {[%clk 0:00:11.3]} 33. Bxf7+ {[%clk 0:01:20.2]}
33... Kf8 {[%clk 0:00:12.5]} 34. Bd5 {[%clk 0:01:20]} 34... Bxd5 {[%clk
0:00:05.9]} 35. Nxd5 {[%clk 0:01:20.2]} 35... Bd8 {[%clk 0:00:07.8]} 36. a4
{[%clk 0:01:16.3]} 36... Nf6 {[%clk 0:00:08.5]} 37. Nxf6 {[%clk 0:01:14.9]}
37... Bxf6 {[%clk 0:00:10.4]} 38. b3 {[%clk 0:01:15.9]} 38... Ke7 {[%clk
0:00:10.5]} 39. Ke2 {[%clk 0:01:16.6]} 39... Bb2 {[%clk 0:00:08.4]} 40. Kd3
{[%clk 0:01:17.4]} 40... Kf6 {[%clk 0:00:08.7]} 41. Ke4 {[%clk 0:01:18.3]} 41...
Ba1 {[%clk 0:00:06.5]} 42. Bf2 {[%clk 0:01:19]} 42... Ke7 {[%clk 0:00:05.6]} 43.
Bh4+ {[%clk 0:01:13.9]} 43... Kd7 {[%clk 0:00:06.2]} 44. f6 {[%clk 0:01:12.6]}
44... gxf6 {[%clk 0:00:07.8]} 45. f5 {[%clk 0:01:09.1]} 45... Ke7 {[%clk
0:00:07.5]} 46. Kd5 {[%clk 0:01:09.9]} 46... Bd4 {[%clk 0:00:07.5]} 47. Bg3
{[%clk 0:01:09.8]} 47... Be3 {[%clk 0:00:04.2]} 48. Bd6+ {[%clk 0:01:10.2]}
48... Ke8 {[%clk 0:00:03.4]} 49. Ke6 {[%clk 0:01:10.9]} 49... Bh6 {[%clk
0:00:02.1]} 50. Kxf6 {[%clk 0:01:09.7]} 50... Kd7 {[%clk 0:00:03.3]} 51. Be5
{[%clk 0:01:07.6]} 51... Kc6 {[%clk 0:00:03.5]} 52. Kf7 {[%clk 0:01:08.1]} 52...
b5 {[%clk 0:00:04.6]} 53. axb5+ {[%clk 0:01:08.5]} 53... Kxb5 {[%clk 0:00:06.5]}
54. g7 {[%clk 0:01:09.5]} 54... Bxg7 {[%clk 0:00:07.9]} 55. Kxg7 {[%clk
0:01:10.4]} 55... c4 {[%clk 0:00:08]} 56. bxc4+ {[%clk 0:01:10.6]} 56... Kxc4
{[%clk 0:00:09.9]} 57. f6 {[%clk 0:01:11.7]} 1-0